[Event "II Duchamp Open 2018"]
[Site "Rio de Janeiro"]
[Date "2018.11.17"]
[Round "4"]
[White "Campos, Alexandre Ferreira"]
[Black "Larrea, Manuel"]
[Result "0-1"]
[ECO "A14"]
[WhiteElo "2076"]
[BlackElo "2271"]
[Annotator "ChessBase"]
[PlyCount "88"]
[EventDate "2018.11.14"]
[EventType "swiss"]
[EventCountry "BRA"]
[SourceTitle "playchess.com"]
[Source "ChessBase"]
[SourceQuality "1"]
[TimeControl "5400+30"]

1. Nf3 {[%emt 0:00:00]} Nf6 {[%emt 0:02:27]} 2. c4 {[%emt 0:00:00]} e6 {[%emt 0:02:38]} 3. g3 {[%emt 0:00:40]} d5 {[%emt 0:00:06]} 4. Bg2 {[%emt 0:00:06]} Be7 {[%emt 0:00:04]} 5. O-O {[%emt 0:00:06]} O-O {[%emt 0:00:11]} 6. d4 {[%emt 0:06:29]} dxc4 {[%emt 0:00:07]} 7. Ne5 {[%emt 0:00:16]} Nc6 {[%emt 0:00:30]} 8. Nxc6 {[%emt 0:02:55]} bxc6 {[%emt 0:00:09]} 9. Qa4 {[%emt 0:00:22]} Qxd4 {[%emt 0:00:43]} 10. Rd1 {[%emt 0:00:48]} Qb6 {[%emt 0:06:25]} 11. Bxc6 {[%emt 0:03:07]} Ng4 {[%emt 0:10:54]} 12. Rf1 {[%emt 0:17:51]} Rb8 {[%emt 0:04:00]} 13. h3 {[%emt 0:01:49]} Ne5 {[%emt 0:04:38]} 14. Bg2 {[%emt 0:00:19]} Bc5 {[%emt 0:09:47]} 15. Nc3 {[%emt 0:03:09]} Qa6 {[%emt 0:27:39]} 16. Qc2 {[%emt 0:16:52]} Bb7 {[%emt 0:01:38]} 17. Ne4 {[%emt 0:00:59]} Be7 {[%emt 0:02:20]} 18. Bf4 {[%emt 0:00:36]} Ng6 {[%emt 0:07:56]} 19. Bxc7 {[%emt 0:01:13]} Rbc8 {[%emt 0:00:25]} 20. Bf4 {[%emt 0:00:20]} f5 {[%emt 0:03:08]} 21. Ng5 {[%emt 0:03:38]} Bxg2 {[%emt 0:01:25]} 22. Kxg2 {[%emt 0:00:04]} e5 {[%emt 0:02:14]} 23. Bd2 {[%emt 0:00:38]} Bxg5 {[%emt 0:01:54]} 24. Bxg5 {[%emt 0:00:03]} f4 {[%emt 0:00:07]} 25. h4 {[%emt 0:02:42]} h6 {[%emt 0:03:29]} 26. h5 {[%emt 0:00:38]} Qc6+ {[%emt 0:00:37]} 27. f3 {[%emt 0:01:18]} hxg5 {[%emt 0:02:18]} 28. hxg6 {[%emt 0:00:12]} Rf6 {[%emt 0:00:36]} 29. Rad1 {[%emt 0:00:37]} Rxg6 {[%emt 0:00:16]} 30. Qf5 {[%emt 0:00:45]} g4 {[%emt 0:00:36]} 31. Qxe5 {[%emt 0:03:38]} gxf3+ {[%emt 0:00:37]} 32. Rxf3 {[%emt 0:00:14]} Rxg3+ {[%emt 0:02:07]} 33. Kf2 {[%emt 0:00:40]} Rxf3+ {[%emt 0:02:16]} 34. exf3 {[%emt 0:00:28]} Qc5+ {[%emt 0:00:51]} 35. Qxc5 {[%emt 0:06:18]} Rxc5 {[%emt 0:00:02]} 36. Rc1 {[%emt 0:00:11]} Kf7 {[%emt 0:01:03]} 37. b3 {[%emt 0:00:22]} c3 {[%emt 0:00:22]} 38. Ke2 {[%emt 0:00:13]} Re5+ {[%emt 0:00:35]} 39. Kf2 {[%emt 0:01:27]} Re3 {[%emt 0:00:16]} 40. b4 {[%emt 0:10:03]} Ke6 {[%emt 0:00:44]} 41. a4 {[%emt 0:00:03]} Kd5 {[%emt 0:00:23]} 42. b5 {[%emt 0:08:01]} Kc4 {[%emt 0:00:05]} 43. Rg1 {[%emt 0:02:50]} c2 {[%emt 0:00:28]} 44. Rxg7 {[%emt 0:00:46]} Rc3 {[%emt 0:00:05]} 0-1

[Event "II Duchamp Open 2018"]
[Site "Rio de Janeiro"]
[Date "2018.11.17"]
[Round "4"]
[White "Dos Santos, Vitor Eduardo Mello"]
[Black "De Almeida, Roberto A. Ferreira"]
[Result "1-0"]
[ECO "C26"]
[WhiteElo "2054"]
[BlackElo "1784"]
[Annotator "NA"]
[PlyCount "99"]
[EventDate "2018.11.14"]
[EventType "swiss"]
[EventCountry "BRA"]
[SourceTitle "playchess.com"]
[Source "ChessBase"]
[SourceQuality "1"]
[TimeControl "5400+30"]

1. a3 {[%emt 0:02:23]} e5 {[%emt 0:01:45]} 2. e4 {[%emt 0:00:07]} Nf6 {[%emt 0:00:22]} 3. Nc3 {[%emt 0:00:07]} Bc5 {[%emt 0:01:03]} 4. Bc4 {[%emt 0:00:16]} Nc6 {[%emt 0:01:15]} 5. Nf3 {[%emt 0:05:36]} O-O {[%emt 0:00:21] C55: Two Knights: 4 d3, 4 d4 exd4 5 e5 and Max Lange Attack} 6. d3 {[%emt 0:01:13]} a6 {[%emt 0:02:41]} (6... h6 7. O-O d6 8. Na4 Bb6 9. b4 Qe7 10. Bd2 Be6 11. Bxe6 Qxe6 12. c4 Bd4 13. Rb1 a6 14. b5 axb5 15. cxb5 Nd8 16. Nxd4 exd4 {½-½ (24) Lagarde,M (2615)-Barbot,P (2420) Cannes 2018}) 7. Bg5 {[%emt 0:02:55]} Be7 {[%emt 0:00:09]} 8. h3 {[%emt 0:05:06]} b5 {[%emt 0:02:19]} 9. Bb3 {[%emt 0:03:31]} d6 {[%emt 0:00:36]} 10. O-O {[%emt 0:00:43]} Nd7 $146 {[%emt 0:02:22]} ({Predecessor:} 10... Na5 11. Ba2 c5 12. Bxf6 Bxf6 13. Nd5 Be6 14. Nh2 {1-0 (29) Assa,O-Nnubia,U Lagos 2015}) 11. Be3 {[%emt 0:01:57]} Kh8 {[%emt 0:03:21]} 12. Ne2 {[%emt 0:21:32]} Na5 {[%emt 0:00:40]} 13. Ba2 {[%emt 0:00:39]} c5 {[%emt 0:00:14]} 14. Ng3 {[%emt 0:05:29]} Nf6 {[%emt 0:02:05]} 15. c3 {[%emt 0:04:08]} c4 {[%emt 0:01:28]} 16. d4 {[%emt 0:01:11]} Nd7 {[%emt 0:05:06]} 17. Nh2 {[%emt 0:03:20]} Nf6 {[%emt 0:02:01]} 18. f3 {[%emt 0:05:23]} Qc7 {[%emt 0:02:12]} 19. Qe2 {[%emt 0:00:54]} Nc6 {[%emt 0:00:52]} 20. d5 {[%emt 0:00:58]} Na5 {[%emt 0:03:03]} 21. f4 {[%emt 0:03:20]} exf4 {[%emt 0:01:33]} 22. Rxf4 {[%emt 0:05:55]} Nb7 {[%emt 0:01:50]} 23. Raf1 {[%emt 0:00:57]} Nc5 {[%emt 0:03:28]} 24. Bd4 {[%emt 0:01:33]} Nd3 {[%emt 0:01:47]} 25. R4f3 {[%emt 0:05:41]} Ne5 {[%emt 0:00:49]} 26. R3f2 {[%emt 0:00:19]} a5 {[%emt 0:04:00]} 27. Nf5 {[%emt 0:03:09]} Bxf5 {[%emt 0:01:00]} 28. Rxf5 {[%emt 0:00:02]} Rae8 {[%emt 0:01:16]} 29. Bb1 {[%emt 0:01:27]} Qb7 {[%emt 0:01:39]} 30. Kh1 {[%emt 0:04:21]} Bd8 {[%emt 0:01:09]} 31. Qf2 {[%emt 0:01:22]} Nfd7 {[%emt 0:04:55]} 32. Qg3 {[%emt 0:05:45]} b4 {[%emt 0:05:32]} 33. axb4 {[%emt 0:00:11]} axb4 {[%emt 0:00:03]} 34. cxb4 {[%emt 0:01:19]} Qxb4 {[%emt 0:00:21]} 35. Ng4 {[%emt 0:00:22]} Qd2 {[%emt 0:00:50]} 36. Bc3 {[%emt 0:00:31]} Qe2 {[%emt 0:01:10]} 37. R5f2 {[%emt 0:00:34]} Qxf2 {[%emt 0:02:15]} 38. Rxf2 {[%emt 0:00:36]} Nxg4 {[%emt 0:01:03]} 39. Qxg4 {[%emt 0:00:05]} Ne5 {[%emt 0:00:26]} 40. Bxe5 {[%emt 0:00:18]} Rxe5 {[%emt 0:03:26]} 41. Qd7 {[%emt 0:00:33]} Be7 {[%emt 0:02:15]} 42. Rf5 {[%emt 0:00:13]} Bf6 {[%emt 0:04:44]} 43. Qxd6 {[%emt 0:01:09]} Ree8 {[%emt 0:00:38]} 44. Rxf6 {[%emt 0:00:26]} gxf6 {[%emt 0:00:27]} 45. Qxf6+ {[%emt 0:00:05]} Kg8 {[%emt 0:00:14]} 46. Qg5+ {[%emt 0:00:02]} Kh8 {[%emt 0:00:18]} 47. Qf6+ {[%emt 0:00:03]} Kg8 {[%emt 0:00:25]} 48. e5 {[%emt 0:00:05]} Ra8 {[%emt 0:01:03]} 49. Qg5+ {[%emt 0:00:18]} Kh8 {[%emt 0:02:09]} 50. Qf5 {[%emt 0:00:07]} 1-0

[Event "II Duchamp Open 2018"]
[Site "Rio de Janeiro"]
[Date "2018.11.17"]
[Round "4"]
[White "Brito, Vicente De Paulo Al"]
[Black "Pimentel, Rafael Favarin G."]
[Result "0-1"]
[ECO "B13"]
[WhiteElo "2044"]
[BlackElo "1886"]
[Annotator "NA"]
[PlyCount "72"]
[EventDate "2018.11.14"]
[EventType "swiss"]
[EventCountry "BRA"]
[SourceTitle "playchess.com"]
[Source "ChessBase"]
[SourceQuality "1"]
[TimeControl "5400+30"]

1. e4 {[%emt 0:00:00]} c6 {[%emt 0:00:00]} 2. d4 {[%emt 0:00:03]} d5 {[%emt 0:00:00]} 3. exd5 {[%emt 0:01:26]} cxd5 {[%emt 0:00:00]} 4. Bd3 {[%emt 0:00:15]} Nc6 {[%emt 0:00:00]} 5. c3 {[%emt 0:00:08]} Nf6 {[%emt 0:00:06]} 6. Bf4 {[%emt 0:00:22]} g6 {[%emt 0:01:05]} 7. Ne2 {[%emt 0:02:43] B13: Caro-Kann: Exchange Variation and Panov-Botvinnik Attack} (7. Nf3 Bf5 8. Bxf5 gxf5 9. Ne5 e6 10. Nd2 Bd6 11. g3 Qc7 12. Qe2 h5 13. Ndf3 Ne4 14. Nxc6 Qxc6 15. Bxd6 Nxd6 {0-1 (50) Demchenko,A (2660)-Melkumyan,H (2633) Riadh 2017}) 7... Bf5 {[%emt 0:05:36]} 8. Bxf5 {[%emt 0:04:50]} gxf5 {[%emt 0:00:01]} 9. Ng3 {[%emt 0:01:20]} e6 {[%emt 0:00:15]} 10. Qe2 {[%emt 0:10:34]} Ne4 $146 {[%emt 0:10:59]} ({Predecessor:} 10... Be7 11. Nd2 Qb6 12. Nf3 Ne4 13. Ne5 Nxe5 14. Bxe5 f6 {½-½ (80) Tomcikova,D (1936)-Zetocha,A (2152) Banska Bystrica 2017}) 11. Nd2 {[%emt 0:30:48]} Bd6 {[%emt 0:01:27]} 12. Bxd6 {[%emt 0:05:04]} Qxd6 {[%emt 0:00:06]} 13. Ngxe4 {[%emt 0:05:42]} fxe4 {[%emt 0:00:22]} 14. f3 {[%emt 0:00:30]} exf3 {[%emt 0:02:06]} 15. Nxf3 {[%emt 0:00:25]} f6 {[%emt 0:01:11]} 16. O-O {[%emt 0:08:35]} O-O-O {[%emt 0:01:55]} 17. b4 {[%emt 0:00:43]} Kb8 {[%emt 0:01:30]} 18. a4 {[%emt 0:04:23]} Rde8 {[%emt 0:05:36]} 19. b5 {[%emt 0:05:32]} Ne7 {[%emt 0:06:16]} 20. c4 {[%emt 0:02:47]} dxc4 {[%emt 0:00:59]} 21. Qxc4 {[%emt 0:00:01]} Nd5 {[%emt 0:00:25]} 22. Rae1 {[%emt 0:02:45]} Rhg8 {[%emt 0:02:04]} 23. Qc5 {[%emt 0:02:49]} Qxc5 {[%emt 0:20:08]} 24. dxc5 {[%emt 0:00:00]} Nf4 {[%emt 0:00:18]} 25. Nh4 {[%emt 0:03:30]} Nd3 {[%emt 0:00:28]} 26. Re3 {[%emt 0:01:17]} Nxc5 {[%emt 0:00:55]} 27. Rxf6 {[%emt 0:00:28]} Rg4 {[%emt 0:02:09]} 28. Nf5 {[%emt 0:01:25]} Rd8 {[%emt 0:07:03]} 29. Nh6 {[%emt 0:02:28]} Rxa4 {[%emt 0:00:28]} 30. Rf7 {[%emt 0:00:28]} Rd1+ {[%emt 0:01:48]} 31. Kf2 {[%emt 0:00:22]} Ne4+ {[%emt 0:00:20]} 32. Rxe4 {[%emt 0:00:11]} Rxe4 {[%emt 0:00:10]} 33. g4 {[%emt 0:02:35]} Rd3 $19 {[%emt 0:01:44]} 34. Kg2 {[%emt 0:01:48]} Re2+ {[%emt 0:00:12]} 35. Rf2 {[%emt 0:00:00]} Rxf2+ {[%emt 0:00:15]} 36. Kxf2 {[%emt 0:00:01]} Rh3 {[%emt 0:00:08]} 0-1

[Event "II Duchamp Open 2018"]
[Site "Rio de Janeiro"]
[Date "2018.11.17"]
[Round "4"]
[White "Torella, Rodolfo"]
[Black "Souza Jr, Helemberg Cubica De"]
[Result "1-0"]
[ECO "B82"]
[WhiteElo "2036"]
[BlackElo "1753"]
[Annotator "NA"]
[PlyCount "39"]
[EventDate "2018.11.14"]
[EventType "swiss"]
[EventCountry "BRA"]
[SourceTitle "playchess.com"]
[Source "ChessBase"]
[SourceQuality "1"]
[TimeControl "5400+30"]

1. e4 {[%emt 0:00:36]} c5 {[%emt 0:00:00]} 2. Nf3 {[%emt 0:00:10]} d6 {[%emt 0:00:00]} 3. d4 {[%emt 0:00:24]} cxd4 {[%emt 0:00:00]} 4. Nxd4 {[%emt 0:00:07]} Nf6 {[%emt 0:00:00]} 5. Nc3 {[%emt 0:00:20]} e6 {[%emt 0:00:13]} 6. Be3 {[%emt 0:01:21]} Be7 {[%emt 0:00:06]} 7. f4 {[%emt 0:02:25]} Nc6 {[%emt 0:03:04]} 8. Qf3 {[%emt 0:01:55]} O-O {[%emt 0:03:11]} 9. O-O-O {[%emt 0:04:31]} Nxd4 {[%emt 0:07:38]} 10. Bxd4 {[%emt 0:02:02]} e5 {[%emt 0:07:49]} 11. fxe5 {[%emt 0:00:30]} Bg4 {[%emt 0:00:13]} 12. exf6 {[%emt 0:01:27]} Bxf3 {[%emt 0:00:19]} 13. fxe7 {[%emt 0:00:15]} Qxe7 {[%emt 0:00:35]} 14. gxf3 {[%emt 0:00:12]} Qh4 {[%emt 0:09:26]} 15. Bc4 {[%emt 0:12:34]} Qf4+ {[%emt 0:02:59]} 16. Kb1 {[%emt 0:00:52]} Qxf3 {[%emt 0:00:17]} 17. Rhg1 {[%emt 0:02:08]} g6 {[%emt 0:00:30]} 18. Rd3 {[%emt 0:02:42]} Qf4 {[%emt 0:04:04]} 19. Nd5 {[%emt 0:00:20]} Qh4 {[%emt 0:03:47]} 20. Bf6 {[%emt 0:00:59]} 1-0

[Event "II Duchamp Open 2018"]
[Site "Rio de Janeiro"]
[Date "2018.11.17"]
[Round "4"]
[White "Urquiza, Marcello de Albuque"]
[Black "Rocha, Vitor Firmo De Souz"]
[Result "1/2-1/2"]
[ECO "B18"]
[WhiteElo "2018"]
[BlackElo "2174"]
[Annotator "ChessBase"]
[PlyCount "124"]
[EventDate "2018.11.14"]
[EventType "swiss"]
[EventCountry "BRA"]
[SourceTitle "playchess.com"]
[Source "ChessBase"]
[SourceQuality "1"]
[TimeControl "5400+30"]

1. e4 {[%emt 0:00:00]} c6 {[%emt 0:00:00]} 2. d4 {[%emt 0:00:04]} d5 {[%emt 0:00:00]} 3. Nd2 {[%emt 0:00:46]} dxe4 {[%emt 0:00:00]} 4. Nxe4 {[%emt 0:00:09]} Bf5 {[%emt 0:00:12]} 5. Ng3 {[%emt 0:00:16]} Bg6 {[%emt 0:00:03]} 6. h4 {[%emt 0:00:30]} h6 {[%emt 0:00:04]} 7. h5 {[%emt 0:00:57]} Bh7 {[%emt 0:01:35]} 8. Nf3 {[%emt 0:00:11]} Nd7 {[%emt 0:00:06]} 9. Bd3 {[%emt 0:00:15]} Bxd3 {[%emt 0:00:05]} 10. Qxd3 {[%emt 0:00:08]} e6 {[%emt 0:00:04]} 11. Bd2 {[%emt 0:02:49]} Qc7 {[%emt 0:00:11]} 12. O-O-O {[%emt 0:01:32]} Ngf6 {[%emt 0:00:15]} 13. Ne4 {[%emt 0:04:57]} O-O-O {[%emt 0:00:08]} 14. Qe2 {[%emt 0:07:26]} Nxe4 {[%emt 0:01:15]} 15. Qxe4 {[%emt 0:00:28]} Nf6 {[%emt 0:00:05]} 16. Qe2 {[%emt 0:00:07]} Bd6 {[%emt 0:00:08]} 17. g3 {[%emt 0:04:19]} Kb8 {[%emt 0:04:08]} 18. Ne5 {[%emt 0:04:30]} Ka8 {[%emt 0:03:31]} 19. Nc4 {[%emt 0:10:56]} c5 {[%emt 0:03:43]} 20. Nxd6 {[%emt 0:08:31]} Qxd6 {[%emt 0:00:06]} 21. Bf4 {[%emt 0:00:40]} Qd5 {[%emt 0:00:13]} 22. c4 {[%emt 0:12:34]} Qe4 {[%emt 0:00:29]} 23. Qxe4 {[%emt 0:00:10]} Nxe4 {[%emt 0:00:05]} 24. Be3 {[%emt 0:00:04]} cxd4 {[%emt 0:06:20]} 25. Rxd4 {[%emt 0:08:32]} Rxd4 {[%emt 0:01:13]} 26. Bxd4 {[%emt 0:00:19]} e5 {[%emt 0:00:32]} 27. Be3 {[%emt 0:02:20]} Rd8 {[%emt 0:05:38]} 28. g4 {[%emt 0:01:46]} b6 {[%emt 0:12:43]} 29. Rd1 {[%emt 0:01:40]} Rc8 {[%emt 0:05:51]} 30. b3 {[%emt 0:00:42]} Nf6 {[%emt 0:00:22]} 31. f3 {[%emt 0:00:20]} Kb7 {[%emt 0:01:20]} 32. Kd2 {[%emt 0:03:58]} Kc6 {[%emt 0:03:36]} 33. Ke2 {[%emt 0:01:47]} a5 {[%emt 0:01:04]} 34. Bc1 {[%emt 0:00:38]} Re8 {[%emt 0:06:04]} 35. Bb2 {[%emt 0:01:14]} g6 {[%emt 0:02:36]} 36. hxg6 {[%emt 0:02:33]} fxg6 {[%emt 0:01:00]} 37. Ba3 {[%emt 0:00:14]} Re6 {[%emt 0:00:37]} 38. Rd8 {[%emt 0:02:10]} Ne8 {[%emt 0:00:56]} 39. Ke3 {[%emt 0:02:54]} Kc7 {[%emt 0:02:06]} 40. Rd2 {[%emt 0:00:29]} Nf6 {[%emt 0:01:56]} 41. Rh2 {[%emt 0:04:33]} h5 {[%emt 0:00:33]} 42. gxh5 {[%emt 0:00:08]} Nxh5 {[%emt 0:00:27]} 43. Rg2 {[%emt 0:02:25]} Kc6 {[%emt 0:11:21]} 44. Bb2 {[%emt 0:00:43]} Ng7 {[%emt 0:00:24]} 45. Ke4 {[%emt 0:02:13]} a4 {[%emt 0:08:31]} 46. Bxe5 {[%emt 0:00:33]} Nf5 {[%emt 0:01:07]} 47. f4 {[%emt 0:02:07]} Kc5 {[%emt 0:01:41]} 48. Kd3 {[%emt 0:01:23]} axb3 {[%emt 0:01:47]} 49. axb3 {[%emt 0:00:06]} Kb4 {[%emt 0:00:24]} 50. Rb2 {[%emt 0:01:02]} Ka3 {[%emt 0:00:40]} 51. Kc3 {[%emt 0:01:15]} g5 {[%emt 0:05:08]} 52. Rb1 {[%emt 0:01:04]} Ka2 {[%emt 0:00:14]} 53. Re1 {[%emt 0:00:30]} gxf4 {[%emt 0:00:36]} 54. Kb4 {[%emt 0:00:10]} Nd4 {[%emt 0:00:30]} 55. Kc3 {[%emt 0:02:11]} Nf3 {[%emt 0:02:04]} 56. Rf1 {[%emt 0:01:15]} Nxe5 {[%emt 0:00:44]} 57. Rf2+ {[%emt 0:00:18]} Ka3 {[%emt 0:00:37]} 58. Rf1 {[%emt 0:00:09]} Ka2 {[%emt 0:00:17]} 59. Rf2+ {[%emt 0:00:05]} Kb1 {[%emt 0:00:38]} 60. Rf1+ {[%emt 0:00:01]} Ka2 {[%emt 0:00:08]} 61. Rf2+ {[%emt 0:00:03]} Ka3 {[%emt 0:00:06]} 62. Rf1 {[%emt 0:00:04]} Ka2 {[%emt 0:00:07]} 1/2-1/2

[Event "II Duchamp Open 2018"]
[Site "Rio de Janeiro"]
[Date "2018.11.17"]
[Round "4"]
[White "Nascimento, Pedro Henrique Alve"]
[Black "Barreto, Ignacio C. De Barro"]
[Result "0-1"]
[ECO "A50"]
[WhiteElo "2007"]
[BlackElo "2222"]
[Annotator "NA"]
[PlyCount "92"]
[EventDate "2018.11.14"]
[EventType "swiss"]
[EventCountry "BRA"]
[SourceTitle "playchess.com"]
[Source "ChessBase"]
[SourceQuality "1"]
[TimeControl "5400+30"]

1. d4 {[%emt 0:00:00]} Nf6 {[%emt 0:01:25]} 2. c4 {[%emt 0:00:06]} Nc6 {[%emt 0:00:40]} 3. Nf3 {[%emt 0:00:54]} e6 {[%emt 0:00:10]} 4. Bg5 {[%emt 0:02:17]} h6 {[%emt 0:00:55]} 5. Bh4 {[%emt 0:00:17]} Bb4+ {[%emt 0:02:31]} 6. Nc3 {[%emt 0:01:52]} Bxc3+ {[%emt 0:03:43] E30: Nimzo-Indian: Leningrad Variation} (6... g5 7. Bg3 Ne4 8. Qc2 d5 9. e3 h5 10. h3 Nxg3 11. fxg3 Qd6 12. Kf2 Qd8 13. cxd5 exd5 14. Bb5 Kf8 15. a3 Be7 16. Bxc6 bxc6 {0-1 (40) Sarkar,J (2307)-Gutman,G (2476) Pardubice 2018}) 7. bxc3 {[%emt 0:00:09]} Qe7 {[%emt 0:00:58]} 8. Qc2 {[%emt 0:01:31]} d6 {[%emt 0:00:56]} 9. e4 {[%emt 0:00:49]} e5 {[%emt 0:02:29]} 10. d5 {[%emt 0:05:43]} Nb8 {[%emt 0:00:28]} 11. Be2 $146 {[%emt 0:00:26]} ({Predecessor:} 11. c5 dxc5 12. Bb5+ Nbd7 13. Bg3 O-O {0-1 (26) Nascimento,P (1834)-Cunha,L (2225) Brasilia 2013}) 11... Nbd7 {[%emt 0:01:13]} 12. O-O {[%emt 0:00:30]} Nf8 {[%emt 0:04:40]} 13. Nd2 {[%emt 0:03:04]} g5 {[%emt 0:05:00]} 14. Bg3 {[%emt 0:00:16]} Ng6 {[%emt 0:00:14]} 15. Rfd1 {[%emt 0:11:17]} h5 {[%emt 0:04:40]} 16. f3 {[%emt 0:00:25]} g4 {[%emt 0:12:07]} 17. c5 {[%emt 0:01:33]} h4 {[%emt 0:05:45]} 18. Bf2 {[%emt 0:04:48]} g3 {[%emt 0:01:13]} 19. hxg3 {[%emt 0:01:15]} hxg3 {[%emt 0:00:22]} 20. Bxg3 {[%emt 0:00:24]} Nh5 {[%emt 0:00:14]} 21. cxd6 {[%emt 0:01:08]} cxd6 {[%emt 0:02:54]} 22. Bb5+ {[%emt 0:00:34]} Kf8 {[%emt 0:00:48]} 23. Nf1 {[%emt 0:01:30]} Qg5 {[%emt 0:10:21]} 24. Qd2 {[%emt 0:02:01]} Ngf4 {[%emt 0:01:06]} 25. Bxf4 {[%emt 0:01:06]} exf4 {[%emt 0:00:37]} 26. g4 {[%emt 0:03:22]} Nf6 {[%emt 0:03:19]} 27. Qg2 {[%emt 0:05:14]} Rh4 {[%emt 0:04:14]} 28. Nh2 {[%emt 0:01:43]} Kg7 {[%emt 0:00:56]} 29. c4 {[%emt 0:00:55]} Bd7 {[%emt 0:06:42]} 30. Bxd7 {[%emt 0:00:31]} Nxd7 {[%emt 0:00:01]} 31. Kf2 {[%emt 0:06:15]} Rah8 {[%emt 0:01:44]} 32. Nf1 {[%emt 0:03:08]} Ne5 {[%emt 0:00:32]} 33. Rac1 {[%emt 0:00:46]} b6 {[%emt 0:01:33]} 34. a4 $2 {[%emt 0:00:48]} (34. Rc3 Rh1 35. Ke2) 34... Rh3 $19 {[%emt 0:03:03]} 35. Rc3 {[%emt 0:00:21]} Qf6 {[%emt 0:05:42]} 36. Rdc1 {[%emt 0:02:53]} Nd3+ {[%emt 0:01:15]} 37. Rxd3 {[%emt 0:01:46]} Qb2+ {[%emt 0:00:04]} 38. Rd2 {[%emt 0:00:27]} Qxc1 {[%emt 0:00:12]} 39. Re2 {[%emt 0:00:37]} Qxc4 {[%emt 0:00:25]} 40. g5 {[%emt 0:00:33]} Qd4+ {[%emt 0:00:47]} 41. Ke1 {[%emt 0:00:20]} Rh1 {[%emt 0:00:28]} 42. g6 {[%emt 0:00:46]} fxg6 {[%emt 0:00:16]} 43. Rd2 {[%emt 0:00:25]} Qc4 {[%emt 0:01:49]} 44. Qe2 {[%emt 0:01:11]} Qc1+ {[%emt 0:01:21]} 45. Rd1 {[%emt 0:00:22]} Qc3+ {[%emt 0:00:06]} 46. Kf2 {[%emt 0:00:45]} R8h2+ {[%emt 0:00:31]} 0-1